bitfinex/quotes_BTCUSD_20221001
["timestamp","ask_amount","ask_price","bid_price","bid_amount"]
[1664627075501,3.09236448,19288.0,19287.0,0.00401455]
[1664627075761,3.14236448,19288.0,19287.0,0.00401455]
[1664627076425,3.19236448,19288.0,19287.0,0.00401455]
[1664627076647,3.43882804,19288.0,19287.0,0.00401455]
[1664627077103,3.38882804,19288.0,19287.0,0.00401455]
[1664627077276,3.42482804,19288.0,19287.0,0.00401455]
[1664627077479,3.37482804,19288.0,19287.0,0.00401455]
[1664627077699,3.17482804,19288.0,19287.0,0.00401455]
[1664627078626,3.13882804,19288.0,19287.0,0.00401455]
[1664627078972,3.13882804,19288.0,19287.0,0.00392211]
[1664627079421,3.17482804,19288.0,19287.0,0.00392211]
[1664627080531,3.60850165,19288.0,19287.0,0.00392211]
[1664627080657,3.16396457,19288.0,19287.0,0.00392211]
[1664627080867,3.16361035,19288.0,19287.0,0.00392211]
[1664627081322,3.19961035,19288.0,19287.0,0.00392211]
[1664627082084,3.14221035,19288.0,19287.0,0.00392211]
[1664627082307,2.86010101,19288.0,19287.0,0.00392211]
[1664627082757,2.82410101,19288.0,19287.0,0.00392211]
[1664627083473,2.86750101,19288.0,19287.0,0.00392211]
[1664627085174,2.83150101,19288.0,19287.0,0.00392211]
[1664627085385,2.86750101,19288.0,19287.0,0.00392211]
[1664627086045,2.94069351,19288.0,19287.0,0.00392211]
[1664627086294,0.43367361,19287.0,19286.0,0.0021]
[1664627086469,2.42642464,19287.0,19286.0,0.0021]
[1664627086702,2.51202572,19287.0,19286.0,0.0021]
[1664627086930,2.29153598,19287.0,19286.0,0.0021]
[1664627087143,2.19153598,19287.0,19286.0,0.0021]
[1664627087399,2.32853598,19287.0,19286.0,0.0021]
[1664627088262,0.85619741,19286.0,19285.0,0.0031]
[1664627088487,1.883426,19286.0,19285.0,0.0031]
[1664627088745,0.05283394,19284.0,19283.0,0.0002]
[1664627088973,5.47680471,19284.0,19283.0,0.0002]
[1664627089190,5.82938788,19284.0,19283.0,0.0002]
[1664627089411,6.37543193,19284.0,19283.0,0.0002]
[1664627090358,0.38367361,19283.0,19282.0,0.002]
[1664627090601,0.38367361,19283.0,19276.0,0.002]
[1664627090602,0.05,19278.0,19276.0,0.002]
[1664627090902,1.12510785,19277.0,19276.0,0.002]
[1664627091132,3.20113652,19277.0,19276.0,0.002]
[1664627091358,2.14250508,19277.0,19276.0,0.0229543]
[1664627091586,2.14250508,19277.0,19276.0,0.007]
[1664627091587,1.40077549,19277.0,19276.0,0.007]
[1664627091811,1.70931257,19277.0,19276.0,0.007]
[1664627092034,1.35077549,19277.0,19276.0,0.007]
[1664627092267,1.41880071,19277.0,19276.0,0.007]
[1664627092548,1.41880071,19277.0,19270.0,1.27413302]
[1664627092549,0.05,19271.0,19269.0,0.002]
[1664627092775,0.59555742,19269.0,19262.0,0.21503606]
[1664627093020,2.12750719,19270.0,19262.0,0.51480606]
[1664627093021,0.50483933,19268.0,19262.0,0.51480606]
[1664627093265,6.17,19270.0,19267.0,0.06168259]
[1664627093266,1.0,19270.0,19267.0,0.06168259]
[1664627093497,1.0,19270.0,19268.0,0.70180477]
[1664627093498,0.039,19269.0,19268.0,0.70180477]
[1664627093736,0.03891251,19269.0,19268.0,0.24941854]
[1664627093974,0.03891251,19269.0,19268.0,0.78648109]
[1664627093975,2.51e-06,19269.0,19268.0,0.78648109]
[1664627094703,0.00676329,19275.0,19268.0,1.14540109]
[1664627094945,0.75180983,19275.0,19269.0,0.51173144]
[1664627095178,0.51173144,19274.0,19268.0,0.64206255]
[1664627095408,0.3,19273.0,19268.0,0.63706255]
[1664627095644,0.50483933,19273.0,19269.0,0.06117314]
[1664627095879,0.3,19274.0,19269.0,0.57790458]
[1664627096112,0.20483933,19273.0,19270.0,0.51173144]
[1664627096366,0.3,19273.0,19270.0,0.51173144]
[1664627096606,0.3,19273.0,19269.0,0.51673144]
[1664627096832,0.59116229,19273.0,19269.0,0.005]
[1664627097060,0.38632296,19273.0,19269.0,0.005]
[1664627097313,0.3,19273.0,19269.0,0.005]
[1664627097545,0.358,19273.0,19269.0,0.19874988]
[1664627097751,0.06802522,19271.0,19269.0,0.19874988]
[1664627098466,0.06802522,19271.0,19270.0,0.09346623]
[1664627098667,0.06802522,19271.0,19270.0,0.96411767]
[1664627098889,0.06802522,19271.0,19270.0,0.60519767]
[1664627099350,0.06802522,19271.0,19270.0,0.51673144]
[1664627099573,0.11402522,19271.0,19270.0,0.51673144]
[1664627100496,0.50321022,19271.0,19270.0,0.005]
[1664627100714,0.46861274,19271.0,19270.0,0.005]
[1664627101181,0.76861274,19271.0,19270.0,0.005]
[1664627101399,0.46861274,19271.0,19270.0,0.005]
[1664627101635,0.84861274,19271.0,19270.0,0.005]
[1664627103176,0.76861274,19271.0,19270.0,0.005]
[1664627103560,0.84361274,19271.0,19270.0,0.005]
[1664627104365,0.53221022,19271.0,19270.0,0.005]
[1664627104827,0.75721022,19271.0,19270.0,0.005]
[1664627105609,0.83221022,19271.0,19270.0,0.005]
[1664627106310,0.53221022,19271.0,19270.0,0.005]
[1664627106529,0.95028394,19271.0,19270.0,0.005]
[1664627106749,0.87528394,19271.0,19270.0,0.005]
[1664627107622,0.95028394,19271.0,19270.0,0.005]
[1664627108816,0.87528394,19271.0,19270.0,0.005]
[1664627109688,0.95528394,19271.0,19270.0,0.005]
[1664627110000,0.14802522,19271.0,19270.0,0.12056]
[1664627110220,0.14802522,19271.0,19270.0,0.47948]
[1664627110442,0.14802522,19271.0,19270.0,0.06279]
[1664627110661,0.17579994,19271.0,19270.0,0.005]
[1664627110890,0.27775322,19271.0,19270.0,0.005]
[1664627111351,0.19775322,19271.0,19270.0,0.005]
[1664627111579,0.14802522,19271.0,19270.0,0.06279]
[1664627112925,0.06795936,19271.0,19270.0,0.06279]
[1664627113662,0.11995936,19271.0,19270.0,0.06279]
[1664627113895,0.11995936,19271.0,19270.0,0.42171]
[1664627114134,0.11995936,19271.0,19270.0,0.06279]
[1664627115006,0.06795936,19271.0,19270.0,0.06279]
[1664627115671,0.11995936,19271.0,19270.0,0.005]
[1664627116818,0.06795936,19271.0,19270.0,0.005]
[1664627117748,0.11995936,19271.0,19270.0,0.005]
[1664627118911,0.06795936,19271.0,19270.0,0.005]
[1664627119596,0.11595936,19271.0,19270.0,0.005]
[1664627120951,9.36e-06,19271.0,19270.0,0.6104819]
[1664627121172,0.00676329,19275.0,19270.0,0.6104819]
[1664627121173,0.29405719,19275.0,19270.0,1.37892626]
[1664627121403,0.29405719,19275.0,19271.0,0.8688317]
[1664627121631,0.00676329,19275.0,19274.0,0.09346623]
[1664627122083,0.00676329,19275.0,19274.0,0.45056649]
[1664627122313,0.00676329,19275.0,19274.0,1.32621793]
[1664627122577,0.00676329,19275.0,19274.0,0.96729793]
[1664627122815,0.00676329,19275.0,19274.0,1.90959973]
[1664627123041,0.00676329,19275.0,19274.0,2.00959973]
[1664627123269,0.00676329,19275.0,19274.0,1.81969801]
[1664627123491,0.00676329,19275.0,19274.0,2.17861801]
[1664627123710,0.08376329,19275.0,19274.0,2.19961801]
[1664627124180,0.08376329,19275.0,19274.0,1.89069801]
[1664627124400,0.08376329,19275.0,19274.0,2.24961801]
[1664627124844,0.08376329,19275.0,19274.0,1.87151775]
[1664627124845,0.00676329,19275.0,19274.0,1.87151775]
[1664627125322,0.00676329,19275.0,19274.0,1.51259775]
[1664627125552,0.00676329,19275.0,19274.0,1.87151775]
[1664627125772,0.00676329,19275.0,19274.0,1.89451775]
[1664627126226,0.00676329,19275.0,19274.0,1.53559775]
[1664627126448,0.00676329,19275.0,19274.0,1.89451775]
[1664627126944,0.00676329,19275.0,19274.0,1.87151775]
[1664627127569,0.00676329,19275.0,19274.0,1.88451775]
[1664627128685,0.129585,19280.0,19278.0,0.09346623]
[1664627128999,0.82053552,19281.0,19278.0,0.22322023]
[1664627129000,0.00188552,19281.0,19278.0,0.22322023]
[1664627129263,0.00188552,19281.0,19280.0,0.09346623]
[1664627129444,0.00188552,19281.0,19280.0,1.37121793]
[1664627129659,0.00188552,19281.0,19280.0,1.52121793]
[1664627130828,0.00188552,19281.0,19280.0,1.76262722]
[1664627131069,0.00283394,19284.0,19283.0,0.09346623]
[1664627131295,0.00283394,19284.0,19283.0,1.02164455]
[1664627131555,0.00283394,19284.0,19283.0,1.44656455]
[1664627132922,0.00283394,19284.0,19283.0,1.43056455]
[1664627133381,0.00283394,19284.0,19283.0,1.61715602]
[1664627133593,0.00283394,19284.0,19283.0,2.02082963]
[1664627134742,0.00283394,19284.0,19283.0,2.00082963]
[1664627135182,0.00283394,19284.0,19283.0,2.08047663]
[1664627135655,0.00283394,19284.0,19283.0,0.73166953]
[1664627135885,0.00283394,19284.0,19283.0,0.72232291]
[1664627136109,0.00283394,19284.0,19283.0,1.43834317]
[1664627136818,0.00283394,19284.0,19283.0,1.46434317]
[1664627137045,0.00283394,19284.0,19283.0,1.05724291]
[1664627137706,0.00283394,19284.0,19283.0,1.07724291]
[1664627138677,0.00283394,19284.0,19283.0,0.71832291]
[1664627138900,0.00283394,19284.0,19283.0,1.05724291]
[1664627139138,0.00283394,19284.0,19283.0,0.69832291]
[1664627139770,0.00283394,19284.0,19283.0,1.07224291]
[1664627140038,0.00283394,19284.0,19283.0,0.71332291]
[1664627140494,0.00283394,19284.0,19283.0,1.07224291]
[1664627140924,0.00283394,19284.0,19283.0,1.05724291]
[1664627141643,0.00283394,19284.0,19283.0,1.46434317]
[1664627141859,0.00283394,19284.0,19283.0,1.65272209]
[1664627142982,0.00283394,19284.0,19283.0,1.63672209]
[1664627143429,0.00283394,19284.0,19283.0,1.41434317]
[1664627143651,0.00283394,19284.0,19283.0,1.48034317]
[1664627144149,0.00283394,19284.0,19283.0,1.43034317]
[1664627144344,0.00283394,19284.0,19283.0,0.71432291]
[1664627144800,0.1738,19288.0,19283.0,0.71432291]
[1664627144801,0.52432997,19289.0,19284.0,0.09629623]
[1664627145027,0.52432997,19289.0,19288.0,0.09346623]
[1664627145028,0.26466315,19289.0,19288.0,0.09346623]
[1664627145278,0.001,19289.0,19288.0,1.32121793]
[1664627145515,0.001,19289.0,19288.0,1.10738872]
[1664627145728,0.001,19289.0,19288.0,1.48630872]
[1664627146200,0.001,19289.0,19288.0,1.77322892]
[1664627146676,0.001,19289.0,19288.0,1.82322892]
[1664627147350,0.001,19289.0,19288.0,1.80322892]
[1664627147571,0.001,19289.0,19288.0,1.70976269]
[1664627147806,0.001,19289.0,19288.0,1.72576269]
[1664627148295,0.001,19289.0,19288.0,1.62576269]
[1664627148738,0.001,19289.0,19288.0,1.67576269]
[1664627148959,0.001,19289.0,19288.0,1.60976269]
[1664627149652,0.001,19289.0,19288.0,1.62476269]
[1664627150843,0.001,19289.0,19288.0,1.60976269]
[1664627151799,0.001,19289.0,19288.0,1.62576269]
[1664627152677,0.001,19289.0,19288.0,1.72576269]
[1664627152888,0.001,19289.0,19288.0,1.60976269]
[1664627153703,0.001,19289.0,19288.0,1.62576269]
[1664627154130,0.001,19289.0,19288.0,1.26684269]
[1664627154418,0.001,19289.0,19288.0,1.62576269]
[1664627155073,0.001,19289.0,19288.0,1.25084269]
[1664627155301,0.001,19289.0,19288.0,0.89374243]
[1664627155541,0.001,19289.0,19288.0,1.25266243]
[1664627155749,0.001,19289.0,19288.0,1.26866243]
[1664627156212,0.001,19289.0,19288.0,1.62576269]
[1664627157273,0.001,19289.0,19288.0,1.31684269]
[1664627157573,0.001,19289.0,19288.0,1.35084269]
[1664627157787,0.001,19289.0,19288.0,1.72576269]
[1664627158007,0.001,19289.0,19288.0,1.62576269]
[1664627158885,0.001,19289.0,19288.0,1.60976269]
[1664627159599,0.001,19289.0,19288.0,1.62576269]
[1664627160924,0.001,19289.0,19288.0,1.60976269]
[1664627161653,0.001,19289.0,19288.0,1.62576269]
[1664627162985,0.001,19289.0,19288.0,1.60976269]
[1664627163453,0.32520933,19289.0,19287.0,0.12969]
[1664627163689,0.20583933,19289.0,19288.0,0.014]
[1664627163896,0.0626,19289.0,19288.0,0.014]
[1664627164114,0.0819201,19289.0,19288.0,0.014]
[1664627164808,0.2115271,19289.0,19288.0,0.014]
[1664627165054,0.2115271,19289.0,19286.0,0.229691]
[1664627165055,0.5115271,19289.0,19286.0,0.229691]
[1664627165269,0.05,19288.0,19286.0,0.229691]
[1664627165739,0.5115271,19289.0,19286.0,0.241691]
[1664627166864,0.5115271,19289.0,19286.0,0.229691]
[1664627167141,0.0992207,19288.0,19286.0,0.129691]
[1664627167376,0.0492207,19288.0,19286.0,0.129691]
[1664627167809,0.0492207,19288.0,19286.0,0.140691]
[1664627168968,0.0492207,19288.0,19286.0,0.129691]
[1664627169208,0.0492207,19288.0,19285.0,0.5]
[1664627169422,0.1788347,19288.0,19285.0,0.5]
[1664627169662,0.4788347,19288.0,19285.0,0.5]
[1664627169871,0.4788347,19288.0,19285.0,0.516]
[1664627170327,0.49182044,19287.0,19285.0,0.516]
[1664627170558,0.65710026,19286.0,19285.0,0.516]
[1664627171010,0.65710026,19286.0,19280.0,0.35686169]
[1664627171225,0.72338733,19285.0,19281.0,0.51173144]
[1664627171451,0.70682006,19284.0,19281.0,0.64146244]
[1664627171665,0.96610406,19284.0,19281.0,0.64146244]
[1664627171893,0.95343406,19284.0,19281.0,0.64546244]
[1664627172128,0.48931073,19284.0,19281.0,0.64546244]
[1664627172352,0.116972,19284.0,19281.0,0.64546244]
[1664627172567,0.3,19285.0,19281.0,0.64546244]
[1664627172785,0.129635,19285.0,19281.0,0.64546244]
[1664627173020,0.129635,19285.0,19281.0,0.64146244]
[1664627173712,0.05,19282.0,19281.0,0.129731]
[1664627173979,0.129647,19283.0,19281.0,0.004]
[1664627174232,0.0129647,19282.0,19281.0,0.004]
[1664627174440,0.1926187,19282.0,19281.0,0.004]
[1664627174665,0.84971896,19282.0,19281.0,0.004]
[1664627175102,0.84971896,19282.0,19278.0,0.129755]
[1664627175323,1.05455829,19282.0,19278.0,0.64148644]
[1664627175759,0.10415936,19281.0,19278.0,0.66248644]
[1664627175980,0.05,19279.0,19278.0,0.66248644]
[1664627176201,0.3,19280.0,19278.0,0.66248644]
[1664627176429,0.3,19280.0,19278.0,0.150755]
[1664627176662,0.05,19279.0,19278.0,0.150755]
[1664627177094,0.05,19279.0,19278.0,0.129755]
[1664627177778,0.53382436,19281.0,19278.0,0.129755]
[1664627177995,1.15024962,19281.0,19278.0,0.129755]
[1664627178219,0.10460903,19280.0,19278.0,0.129755]
[1664627178903,0.05,19279.0,19278.0,0.129755]
[1664627181198,0.40460903,19280.0,19278.0,0.129755]
[1664627181631,0.05,19279.0,19278.0,0.129755]
[1664627181817,0.05,19279.0,19278.0,0.135755]
[1664627183077,0.05,19279.0,19278.0,0.129755]
[1664627183549,0.3,19280.0,19278.0,0.129755]
[1664627183773,1.41422046,19281.0,19278.0,0.135755]
[1664627183985,1.30929854,19281.0,19278.0,0.135755]
[1664627184232,0.3,19280.0,19278.0,0.135755]
[1664627184565,0.95219828,19281.0,19278.0,0.135755]
[1664627184781,0.429671,19280.0,19278.0,0.135755]
[1664627185009,0.129671,19280.0,19278.0,0.129755]
[1664627185279,0.05,19279.0,19278.0,0.129755]
[1664627186641,0.429671,19280.0,19278.0,0.129755]
[1664627186862,0.129671,19280.0,19278.0,0.129755]
[1664627187306,0.05,19279.0,19278.0,0.129755]
[1664627187754,0.129671,19280.0,19278.0,0.129755]
[1664627188013,0.7977102,19281.0,19279.0,0.05]
[1664627188251,0.45874918,19281.0,19280.0,0.51173144]
[1664627188487,0.45874918,19281.0,19280.0,0.8688317]
[1664627188707,0.45874918,19281.0,19280.0,0.62456321]
[1664627189174,0.45874918,19281.0,19280.0,0.98166347]
[1664627189384,0.45874918,19281.0,19280.0,0.67456321]
[1664627189673,0.45874918,19281.0,19280.0,1.03166347]
[1664627189928,0.45874918,19281.0,19280.0,1.04366347]
[1664627190318,0.45874918,19281.0,19280.0,1.82742639]
[1664627190826,0.45874918,19281.0,19280.0,1.28883839]
[1664627191055,0.45874918,19281.0,19280.0,1.64775839]
[1664627191282,0.45874918,19281.0,19280.0,1.68575839]
[1664627191955,0.45874918,19281.0,19280.0,1.70775839]
[1664627193334,0.45874918,19281.0,19280.0,1.68575839]
[1664627193987,0.45874918,19281.0,19280.0,1.71075839]
[1664627195001,0.45874918,19281.0,19280.0,1.68575839]
[1664627195898,0.45874918,19281.0,19280.0,1.71075839]
[1664627197063,0.45874918,19281.0,19280.0,1.68575839]
[1664627197847,0.45874918,19281.0,19280.0,1.70975839]
[1664627198079,1.3423,19286.0,19280.0,3.39663141]
[1664627198299,3.47280237,19289.0,19285.0,0.09346623]
[1664627198514,0.129617,19288.0,19285.0,0.09346623]
[1664627198731,0.388845,19288.0,19283.0,0.05]
[1664627198947,0.59368433,19288.0,19284.0,0.51173144]
[1664627199226,0.388845,19288.0,19284.0,0.51173144]
[1664627199622,0.388845,19288.0,19284.0,0.56173144]
[1664627199834,0.388845,19288.0,19285.0,0.259409]
[1664627200212,0.388845,19288.0,19285.0,0.77114044]
[1664627201973,0.388845,19288.0,19285.0,0.78414044]
[1664627203330,0.388845,19288.0,19285.0,0.77114044]
[1664627203814,1.4,19284.0,19277.0,0.5]
[1664627204042,1.4,19284.0,19278.0,0.51173144]
[1664627204043,0.05,19279.0,19278.0,0.51173144]
[1664627204283,0.25483933,19279.0,19278.0,0.51173144]
[1664627204521,0.20483933,19279.0,19278.0,0.51173144]
[1664627204749,0.50483933,19280.0,19278.0,0.51173144]
[1664627204967,0.54039603,19280.0,19278.0,0.51173144]
[1664627205197,0.3355567,19280.0,19278.0,0.51173144]
[1664627205947,0.3355567,19280.0,19277.0,0.51173144]
[1664627206165,0.05,19279.0,19277.0,0.51173144]
[1664627207542,0.3355567,19280.0,19278.0,0.35892]
[1664627207770,0.3355567,19280.0,19277.0,0.51173144]
[1664627207771,0.58592723,19280.0,19277.0,0.51173144]
[1664627207999,0.05503705,19279.0,19277.0,0.52673144]
[1664627208261,0.05503705,19279.0,19278.0,0.35892]
[1664627208481,0.71559523,19280.0,19277.0,0.65649244]
[1664627208482,0.97493123,19280.0,19277.0,0.65649244]
[1664627208702,0.58592723,19280.0,19277.0,0.65649244]
[1664627209355,1.10452023,19280.0,19277.0,0.64149244]
[1664627209599,0.129677,19279.0,19277.0,0.64149244]
[1664627210036,0.389026,19279.0,19277.0,0.65649244]
[1664627210265,0.05,19278.0,19277.0,0.65649244]
[1664627210508,0.389029,19279.0,19277.0,0.65649244]
[1664627210985,0.03721166,19278.0,19277.0,0.65642991]
[1664627211210,0.03721166,19278.0,19277.0,0.64142991]
[1664627212122,0.518621,19279.0,19277.0,0.65642991]
[1664627212352,0.116922,19279.0,19277.0,0.65642991]
[1664627213068,0.04374543,19278.0,19277.0,0.65642991]
[1664627213324,0.04374543,19278.0,19277.0,0.64142991]
[1664627213550,0.505962,19279.0,19277.0,0.64142991]
[1664627214001,0.505962,19279.0,19277.0,0.65642991]
[1664627214253,0.116922,19279.0,19277.0,0.65642991]
[1664627214731,0.505962,19279.0,19277.0,0.65642991]
[1664627215396,0.129578,19281.0,19278.0,0.61798601]
[1664627215652,0.129578,19281.0,19279.0,0.87065144]
[1664627215927,0.129578,19281.0,19280.0,0.05]
[1664627216156,0.518568,19281.0,19279.0,0.64147744]
[1664627217046,0.518578,19281.0,19279.0,0.64147744]
[1664627217277,0.129578,19281.0,19279.0,0.64147744]
[1664627217479,0.518578,19281.0,19279.0,0.64147744]
[1664627218445,0.518578,19281.0,19277.0,0.17884396]
[1664627218446,0.24858476,19280.0,19277.0,0.17884396]
[1664627218671,0.20483933,19279.0,19277.0,0.64149144]
[1664627218906,0.907743,19279.0,19277.0,0.64149144]
[1664627219352,1.17946208,19279.0,19277.0,0.12976]
[1664627219571,0.04374543,19278.0,19277.0,0.12976]
[1664627220008,0.04367287,19278.0,19277.0,0.14476]
[1664627220692,1.10421475,19279.0,19277.0,0.14476]
[1664627221213,0.04367287,19278.0,19277.0,0.14476]
[1664627221670,0.04367287,19278.0,19277.0,0.12976]
[1664627223666,1.23380675,19279.0,19277.0,0.12976]
[1664627223888,1.166927,19279.0,19277.0,0.12976]
[1664627224113,0.04367287,19278.0,19277.0,0.12976]
[1664627225273,1.166927,19279.0,19277.0,0.12976]
[1664627225727,0.04367287,19278.0,19277.0,0.12976]
[1664627226651,0.04367287,19278.0,19275.0,0.729774]
[1664627226876,0.907816,19277.0,19276.0,0.51173144]
[1664627227092,0.907816,19277.0,19276.0,0.51673144]
[1664627227985,0.907816,19277.0,19276.0,0.52473144]
[1664627228215,0.907816,19277.0,19276.0,0.013]
[1664627229394,1.31592509,19277.0,19276.0,0.005]
[1664627229615,1.01592509,19277.0,19276.0,0.005]
[1664627229849,1.31592509,19277.0,19276.0,0.005]
[1664627231300,0.907816,19277.0,19276.0,0.005]
[1664627232319,0.27791117,19280.0,19278.0,0.10632713]
[1664627232574,0.27791117,19280.0,19279.0,1.38983205]
[1664627232807,0.35051415,19287.0,19279.0,1.62881525]
[1664627233022,0.24891416,19287.0,19280.0,0.92458492]
[1664627233236,0.24891416,19287.0,19282.0,0.1]
[1664627233457,0.24891416,19287.0,19283.0,0.36285348]
[1664627233913,0.24891416,19287.0,19283.0,0.89058492]
[1664627235216,0.20483933,19287.0,19283.0,0.89058492]
[1664627235440,0.35820432,19287.0,19283.0,0.51173144]
[1664627235676,0.22532326,19286.0,19283.0,0.00632713]
[1664627235912,0.52532326,19286.0,19282.0,0.1]
[1664627236141,0.22532326,19286.0,19282.0,0.61173144]
[1664627236417,0.52532326,19286.0,19282.0,0.61173144]
[1664627237538,0.32048393,19286.0,19282.0,0.61173144]
[1664627237804,0.22552964,19287.0,19283.0,1.48126995]
[1664627238036,0.22552964,19287.0,19283.0,1.12234995]
[1664627239435,0.43036897,19287.0,19283.0,1.12234995]
[1664627239889,0.43036897,19287.0,19284.0,0.129715]
[1664627240117,0.22552964,19287.0,19284.0,0.129715]
[1664627240355,0.52552964,19287.0,19284.0,0.129715]
[1664627241841,0.22552964,19287.0,19284.0,0.129715]
[1664627243025,0.52552964,19287.0,19284.0,0.129715]
[1664627245511,0.22552964,19287.0,19284.0,0.129715]
[1664627247704,0.22552964,19287.0,19284.0,0.49256848]
[1664627249044,0.22552964,19287.0,19284.0,0.129715]
[1664627251080,2.66721958,19287.0,19284.0,0.129715]
[1664627252812,0.22552964,19287.0,19284.0,0.129715]
[1664627253072,0.22552964,19287.0,19284.0,0.49256848]
[1664627253271,0.22552964,19287.0,19284.0,0.129715]
[1664627253881,0.22552964,19287.0,19284.0,0.49256848]
[1664627254119,0.22552964,19287.0,19284.0,0.129715]
[1664627254544,0.22552964,19287.0,19286.0,0.10632713]
[1664627254758,0.22552964,19287.0,19284.0,0.82962484]
[1664627255134,0.22552964,19287.0,19285.0,0.10632713]
[1664627255135,0.00010064,19286.0,19285.0,0.10632713]
[1664627256755,0.00010064,19286.0,19285.0,0.61805857]
[1664627256976,0.00010064,19286.0,19285.0,0.97697857]
[1664627257452,0.00010064,19286.0,19285.0,0.61805857]
[1664627259936,0.00010064,19286.0,19285.0,0.61795562]
[1664627261793,0.00010064,19286.0,19285.0,0.70569388]
[1664627263134,0.00010064,19286.0,19285.0,0.61795562]
[1664627264053,0.68898264,19286.0,19284.0,0.259427]
[1664627264279,0.68898264,19286.0,19284.0,0.64144644]
[1664627264549,0.4066293,19285.0,19283.0,0.129717]
[1664627264777,0.08443875,19284.0,19283.0,0.129717]
[1664627265017,0.08443875,19284.0,19282.0,0.129729]
[1664627265245,0.71883708,19284.0,19279.0,0.21157926]
[1664627265477,0.20483933,19283.0,19280.0,0.51173144]
[1664627265739,0.907543,19283.0,19281.0,0.129735]
[1664627265968,1.166676,19283.0,19281.0,0.64146644]
[1664627266199,0.66285348,19282.0,19280.0,0.149742]
[1664627266429,0.91146863,19282.0,19280.0,0.149742]
[1664627266650,0.47334582,19282.0,19280.0,0.149742]
[1664627266929,0.04377582,19281.0,19280.0,0.149742]
[1664627267384,0.04377582,19281.0,19280.0,0.129742]
[1664627267833,0.91511673,19282.0,19280.0,0.129742]
[1664627268053,0.88900021,19282.0,19280.0,0.129742]
[1664627268306,1.04477573,19282.0,19280.0,0.129742]
[1664627268524,0.91512673,19282.0,19280.0,0.129742]
[1664627268966,1.43374773,19282.0,19280.0,0.129742]
[1664627269186,0.12563082,19281.0,19280.0,0.129742]
[1664627270481,1.43374773,19282.0,19280.0,0.129742]
[1664627271559,0.04377582,19281.0,19280.0,0.129742]
[1664627273385,1.56331673,19282.0,19280.0,0.129742]
[1664627273597,1.92617021,19282.0,19280.0,0.129742]
[1664627273816,1.56331673,19282.0,19280.0,0.129742]
[1664627274039,0.08689804,19281.0,19280.0,0.129742]
[1664627279299,1.56331673,19282.0,19280.0,0.129742]
[1664627279775,0.04377582,19281.0,19280.0,0.129742]
[1664627281427,2.08195773,19282.0,19280.0,0.129742]
[1664627281666,0.04377582,19281.0,19280.0,0.129742]
[1664627282710,2.08195773,19282.0,19280.0,0.129742]
[1664627282927,0.04377582,19281.0,19280.0,0.12963293]
[1664627284706,2.08195773,19282.0,19280.0,0.12963293]
[1664627285442,0.24231392,19281.0,19280.0,0.12963293]
[1664627285666,0.24231392,19281.0,19279.0,0.129749]
[1664627285918,0.95145182,19280.0,19279.0,0.129749]
[1664627286128,1.25145182,19280.0,19279.0,0.129749]
[1664627287482,1.25145182,19280.0,19279.0,0.13260715]
[1664627287697,1.47622525,19280.0,19279.0,0.13260715]
[1664627289290,1.25145182,19280.0,19279.0,0.13260715]
[1664627289756,0.59067582,19278.0,19274.0,0.1]
[1664627289983,0.04377582,19271.0,19270.0,0.002]
[1664627290207,0.299712,19275.0,19270.0,0.002]
[1664627290208,0.56566941,19273.0,19270.0,0.002]
[1664627290435,0.20483933,19272.0,19270.0,0.002]
[1664627290652,0.36083008,19274.0,19270.0,0.007]
[1664627290653,0.50483933,19273.0,19270.0,0.007]
[1664627290883,0.20483933,19272.0,19270.0,0.007]
[1664627291104,0.38656694,19273.0,19270.0,0.01322418]
[1664627291105,0.59140627,19273.0,19270.0,0.01322418]
[1664627291349,0.29140627,19273.0,19270.0,0.01900612]
[1664627291573,0.08656694,19273.0,19270.0,0.0252303]
[1664627291792,1.63796919,19275.0,19270.0,0.01900612]
[1664627292007,1.63796919,19275.0,19270.0,0.007]
[1664627292008,0.66083008,19274.0,19270.0,0.007]
[1664627292289,0.50483933,19274.0,19270.0,0.007]
[1664627292523,0.43748941,19274.0,19270.0,0.007]
[1664627292739,0.43748941,19274.0,19270.0,0.01322418]
[1664627293187,0.64232874,19274.0,19270.0,0.007]
[1664627293415,0.05048393,19273.0,19270.0,0.007]
[1664627293636,0.40884075,19273.0,19270.0,0.01322418]
[1664627293863,0.50483933,19274.0,19271.0,0.51173144]
[1664627293864,0.3,19274.0,19271.0,0.51173144]
[1664627294098,0.36649534,19275.0,19271.0,0.51173144]
[1664627294324,0.389118,19275.0,19271.0,0.51173144]
[1664627294569,0.389118,19275.0,19272.0,0.005]
[1664627294825,0.389118,19275.0,19272.0,0.01122418]
[1664627295067,0.129622,19274.0,19272.0,0.01122418]
[1664627295288,0.74735589,19274.0,19272.0,0.005]
[1664627295742,0.129715,19273.0,19272.0,0.005]
[1664627296197,0.389145,19273.0,19272.0,0.005]
[1664627296662,2.82139333,19273.0,19272.0,0.005]
[1664627299192,0.389145,19273.0,19272.0,0.005]
[1664627300083,0.389145,19273.0,19272.0,0.05747]
[1664627300566,0.648466,19274.0,19272.0,0.68910178]
[1664627300791,0.259331,19274.0,19273.0,1.61173144]
[1664627301023,0.18538121,19276.0,19273.0,0.56173144]
[1664627301291,0.83377721,19276.0,19273.0,0.51173144]
[1664627301514,1.00918308,19278.0,19274.0,0.71912876]
[1664627301515,1.167105,19278.0,19274.0,0.71912876]
[1664627301746,0.129691,19277.0,19274.0,0.76912876]
[1664627301972,0.388973,19278.0,19275.0,0.51173144]
[1664627302220,0.388973,19278.0,19275.0,0.129771]
[1664627302221,0.20483933,19277.0,19275.0,0.129771]
[1664627302486,0.20483933,19277.0,19274.0,0.011]
[1664627302487,0.21790237,19276.0,19274.0,0.011]
[1664627302928,0.21790237,19276.0,19275.0,0.005]
[1664627304058,0.60698537,19276.0,19275.0,0.005]
[1664627304279,0.60698537,19276.0,19275.0,0.008]
[1664627304507,0.73252031,19276.0,19275.0,0.008]
[1664627304732,1.03252031,19276.0,19275.0,0.008]
[1664627305406,0.73252031,19276.0,19275.0,0.008]
[1664627305643,1.55129931,19276.0,19275.0,0.005]
[1664627305870,1.91212939,19276.0,19275.0,0.005]
[1664627306578,1.55129931,19276.0,19275.0,0.005]
[1664627310768,1.55129931,19276.0,19275.0,0.00489043]
[1664627312152,1.91212939,19276.0,19275.0,0.00489043]